fUST/lending_fUST_20251129
["ID","MTS","AMOUNT","RATE_DAILY","PERIOD"]
[395092743,1764421843114,-151.0,0.00011735,2]
[395092745,1764421843124,-151.0,0.00011735,2]
[395092747,1764421843133,-151.0,0.00011735,2]
[395092749,1764421843143,-151.0,0.00011735,2]
[395092751,1764421843152,-151.0,0.00011735,2]
[395092753,1764421843161,-209.64008,0.00011735,2]
[395092755,1764421843171,-239.929249,0.00011735,2]
[395092757,1764421843179,-239.929249,0.00011735,2]
[395092758,1764421843199,-239.929249,0.00011735,2]
[395092761,1764421843208,-153.983193,0.00011735,2]
[395092763,1764421843217,-239.929249,0.00011735,2]
[395092765,1764421843227,-239.929249,0.00011735,2]
[395092766,1764421843236,-239.929249,0.00011735,2]
[395092768,1764421843245,-239.929249,0.00011735,2]
[395092770,1764421843255,-239.929249,0.00011735,2]
[395092773,1764421843264,-239.929249,0.00011735,2]
[395092775,1764421843274,-239.929249,0.00011735,2]
[395092776,1764421843283,-239.929249,0.00011735,2]
[395092779,1764421843293,-239.929249,0.00011735,2]
[395092781,1764421843302,-239.929249,0.00011735,2]
[395092782,1764421843311,-239.929249,0.00011735,2]
[395092784,1764421843320,-239.929249,0.00011735,2]
[395092787,1764421843330,-239.929249,0.00011735,2]
[395092788,1764421843339,-239.929249,0.00011735,2]
[395092791,1764421843349,-239.929249,0.00011735,2]
[395092793,1764421843359,-239.929249,0.00011735,2]
[395092794,1764421843368,-239.929257,0.00011735,2]
[395092797,1764421843377,-154.625513,0.00011735,2]
[395092799,1764421843387,-154.625513,0.00011735,2]
[395092800,1764421843397,-154.625513,0.00011735,2]
[395092802,1764421843406,-154.625513,0.00011735,2]
[395092805,1764421843415,-224.583728,0.00011735,2]
[395092807,1764421843425,-154.625513,0.00011735,2]
[395092808,1764421843434,-224.583728,0.00011735,2]
[395092810,1764421843443,-154.625513,0.00011735,2]
[395092812,1764421843452,-224.583728,0.00011735,2]
[395092815,1764421843462,-154.625513,0.00011735,2]
[395092816,1764421843471,-224.583728,0.00011735,2]
[395092818,1764421843480,-154.625513,0.00011735,2]
[395092821,1764421843490,-224.583728,0.00011735,2]
[395092822,1764421843499,-154.625513,0.00011735,2]
[395092825,1764421843508,-224.583728,0.00011735,2]
[395092826,1764421843518,-154.625513,0.00011735,2]
[395092829,1764421843527,-224.583728,0.00011735,2]
[395092830,1764421843536,-154.625513,0.00011735,2]
[395092833,1764421843546,-224.583728,0.00011735,2]
[395092835,1764421843555,-154.625513,0.00011735,2]
[395092837,1764421843565,-224.583728,0.00011735,2]
[395092839,1764421843574,-154.625513,0.00011735,2]
[395092840,1764421843583,-224.583728,0.00011735,2]
[395092843,1764421843593,-154.625513,0.00011735,2]
[395092845,1764421843602,-224.583728,0.00011735,2]
[395092847,1764421843611,-154.625513,0.00011735,2]
[395092848,1764421843620,-154.625513,0.00011735,2]
[395092850,1764421843629,-224.583728,0.00011735,2]
[395092852,1764421843638,-154.625513,0.00011735,2]
[395092854,1764421843647,-224.583728,0.00011735,2]
[395092856,1764421843657,-154.625513,0.00011735,2]
[395092858,1764421843670,-224.583728,0.00011735,2]
[395092860,1764421843679,-154.625513,0.00011735,2]
[395092862,1764421843690,-224.583728,0.00011735,2]
[395092864,1764421843699,-154.625508,0.00011735,2]
[395092866,1764421843710,-224.583728,0.00011735,2]
[395092868,1764421843719,-224.583728,0.00011735,2]
[395092871,1764421843729,-224.583728,0.00011735,2]
[395092873,1764421843739,-224.583728,0.00011735,2]
[395092875,1764421843750,-224.583738,0.00011735,2]
[395092876,1764421843760,-151.0,0.00011735,2]
[395092879,1764421843769,-151.0,0.00011735,2]
[395092881,1764421843779,-151.0,0.00011735,2]
[395092882,1764421843789,-151.0,0.00011735,2]
[395092885,1764421843799,-151.0,0.00011735,2]
[395092886,1764421843808,-151.0,0.00011735,2]
[395092889,1764421843819,-151.0,0.00011735,2]
[395092891,1764421843828,-242.392966,0.00011735,2]
[395092892,1764421843838,-151.0,0.00011735,2]
[395092895,1764421843848,-242.392966,0.00011735,2]
[395092897,1764421843858,-151.0,0.00011735,2]
[395092914,1764421843989,-242.392966,0.00011735,2]
[395092916,1764421844017,-242.392966,0.00011735,2]
[395092920,1764421844038,-151.0,0.00011735,2]
[395092922,1764421844048,-242.392966,0.00011735,2]
[395092924,1764421844059,-151.0,0.00011735,2]
[395092926,1764421844069,-242.392966,0.00011735,2]
[395092928,1764421844079,-151.0,0.00011735,2]
[395092930,1764421844089,-242.392966,0.00011735,2]
[395092932,1764421844099,-269.533998,0.00011735,2]
[395092935,1764421844108,-242.392966,0.00011735,2]
[395092937,1764421844119,-242.392966,0.00011735,2]
[395092939,1764421844129,-242.392966,0.00011735,2]
[395092941,1764421844143,-242.392966,0.00011735,2]
[395092943,1764421844152,-242.392966,0.00011735,2]
[395092945,1764421844162,-151.0,0.00011735,2]
[395092947,1764421844171,-242.392966,0.00011735,2]
[395092949,1764421844181,-151.0,0.00011735,2]
[395092951,1764421844191,-151.0,0.00011735,2]
[395092953,1764421844200,-242.392966,0.00011735,2]
[395092955,1764421844210,-151.0,0.00011735,2]
[395092957,1764421844220,-151.431845,0.00011735,2]
[395092959,1764421844230,-242.392966,0.00011735,2]
[395092961,1764421844239,-151.0,0.00011735,2]
[395092963,1764421844250,-242.392966,0.00011735,2]
[395092965,1764421844260,-151.0,0.00011735,2]
[395092967,1764421844270,-242.392966,0.00011735,2]
[395092969,1764421844279,-151.0,0.00011735,2]
[395092971,1764421844288,-151.0,0.00011735,2]
[395092973,1764421844297,-242.392966,0.00011735,2]
[395092975,1764421844307,-151.0,0.00011735,2]
[395092977,1764421844317,-242.392966,0.00011735,2]
[395092979,1764421844327,-151.0,0.00011735,2]
[395092981,1764421844336,-242.392972,0.00011735,2]
[395092983,1764421844346,-151.0,0.00011735,2]
[395092985,1764421844356,-151.0,0.00011735,2]
[395092988,1764421844366,-151.0,0.00011735,2]
[395092990,1764421844375,-193.278745,0.00011735,2]
[395092992,1764421844384,-151.0,0.00011735,2]
[395092994,1764421844394,-151.0,0.00011735,2]
[395092996,1764421844404,-151.0,0.00011735,2]
[395092998,1764421844413,-151.0,0.00011735,2]
[395093000,1764421844422,-151.0,0.00011735,2]
[395093002,1764421844432,-151.0,0.00011735,2]
[395093004,1764421844442,-151.0,0.00011735,2]
[395093006,1764421844451,-151.0,0.00011735,2]
[395093008,1764421844461,-151.0,0.00011735,2]
[395093010,1764421844470,-291.556996,0.00011735,2]
[395093012,1764421844480,-267.97191,0.00011735,2]
[395093014,1764421844489,-267.97191,0.00011735,2]
[395093016,1764421844499,-267.97191,0.00011735,2]
[395093018,1764421844509,-267.97191,0.00011735,2]
[395093020,1764421844519,-267.97191,0.00011735,2]
[395093023,1764421844532,-267.97191,0.00011735,2]
[395093025,1764421844542,-267.97191,0.00011735,2]
[395093027,1764421844552,-267.97191,0.00011735,2]
[395093029,1764421844561,-267.97191,0.00011735,2]
[395093031,1764421844570,-267.97191,0.00011735,2]
[395093033,1764421844581,-267.97191,0.00011735,2]
[395093035,1764421844590,-267.97191,0.00011735,2]
[395093037,1764421844600,-267.97191,0.00011735,2]
[395093039,1764421844610,-267.97191,0.00011735,2]
[395093041,1764421844619,-267.97191,0.00011735,2]
[395093042,1764421844629,-267.97191,0.00011735,2]
[395093043,1764421844639,-267.97191,0.00011735,2]
[395093044,1764421844648,-267.97191,0.00011735,2]
[395093045,1764421844658,-267.97191,0.00011735,2]
[395093046,1764421844669,-267.971915,0.00011735,2]
[395093047,1764421844684,-254.675245,0.00011735,2]
[395093048,1764421844695,-254.675245,0.00011735,2]
[395093050,1764421844705,-254.675245,0.00011735,2]
[395093051,1764421844715,-254.675245,0.00011735,2]
[395093052,1764421844725,-254.675245,0.00011735,2]
[395093053,1764421844734,-254.675245,0.00011735,2]
[395093054,1764421844745,-254.675245,0.00011735,2]
[395093055,1764421844758,-254.675245,0.00011735,2]
[395093056,1764421844768,-254.675245,0.00011735,2]
[395093057,1764421844778,-254.675245,0.00011735,2]
[395093058,1764421844788,-254.675245,0.00011735,2]
[395093059,1764421844800,-254.675245,0.00011735,2]
[395093060,1764421844813,-254.675245,0.00011735,2]
[395093061,1764421844831,-254.675245,0.00011735,2]
[395093062,1764421844841,-254.675245,0.00011735,2]
[395093063,1764421844850,-254.675245,0.00011735,2]
[395093064,1764421844860,-254.675245,0.00011735,2]
[395093065,1764421844870,-254.675245,0.00011735,2]
[395093066,1764421844880,-254.675245,0.00011735,2]
[395093067,1764421844892,-254.675237,0.00011735,2]
[395093068,1764421844901,-151.0,0.00011735,2]
[395093069,1764421844911,-151.0,0.00011735,2]
[395093070,1764421844920,-151.0,0.00011735,2]
[395093071,1764421844930,-181.459142,0.00011735,2]
[395093072,1764421844939,-316.717871,0.00011735,2]
[395093073,1764421844949,-316.717871,0.00011735,2]
[395093074,1764421844958,-316.717871,0.00011735,2]
[395093075,1764421844968,-316.717871,0.00011735,2]
[395093076,1764421844978,-316.717871,0.00011735,2]
[395093077,1764421844988,-316.717871,0.00011735,2]
[395093078,1764421844998,-316.717871,0.00011735,2]
[395093079,1764421845007,-316.717871,0.00011735,2]
[395093080,1764421845017,-316.717871,0.00011735,2]
[395093081,1764421845026,-316.717871,0.00011735,2]
[395093082,1764421845036,-316.717871,0.00011735,2]
[395093083,1764421845045,-316.717871,0.00011735,2]
[395093084,1764421845054,-83.39631089,0.00011735,2]
[395093086,1764421845801,-233.32156011,0.00011735,2]
[395093087,1764421845811,-316.717871,0.00011735,2]
[395093088,1764421845827,-316.717871,0.00011735,2]
[395093089,1764421845839,-316.717871,0.00011735,2]
[395093090,1764421845850,-316.717871,0.00011735,2]
[395093091,1764421845860,-316.717871,0.00011735,2]
[395093092,1764421845869,-316.717871,0.00011735,2]
[395093093,1764421845879,-316.717863,0.00011735,2]
[395093094,1764421845888,-193.695613,0.00011735,2]
[395093095,1764421845897,-193.695613,0.00011735,2]
[395093096,1764421845907,-193.695613,0.00011735,2]
[395093097,1764421845917,-193.695613,0.00011735,2]
[395093098,1764421845926,-193.695613,0.00011735,2]
[395093099,1764421845935,-193.695613,0.00011735,2]
[395093100,1764421845945,-193.695613,0.00011735,2]
[395093101,1764421845954,-193.695613,0.00011735,2]
[395093102,1764421845964,-193.695613,0.00011735,2]
[395093103,1764421845973,-193.695613,0.00011735,2]
[395093104,1764421845983,-193.695613,0.00011735,2]
[395093105,1764421845992,-193.695613,0.00011735,2]
[395093106,1764421846001,-193.695613,0.00011735,2]
[395093107,1764421846011,-193.695613,0.00011735,2]
[395093108,1764421846020,-193.695613,0.00011735,2]
[395093109,1764421846030,-193.695613,0.00011735,2]
[395093110,1764421846039,-193.695613,0.00011735,2]
[395093111,1764421846049,-193.695613,0.00011735,2]
[395093112,1764421846058,-193.695613,0.00011735,2]
[395093113,1764421846068,-262.619832,0.00011735,2]
[395093114,1764421846077,-193.695621,0.00011735,2]
[395093115,1764421846087,-262.619832,0.00011735,2]
[395093116,1764421846096,-262.619832,0.00011735,2]
[395093117,1764421846105,-262.619832,0.00011735,2]
[395093118,1764421846114,-262.619832,0.00011735,2]
[395093119,1764421846124,-262.619832,0.00011735,2]
[395093120,1764421846133,-262.619832,0.00011735,2]
[395093121,1764421846303,-262.619832,0.00011735,2]
[395093122,1764421846343,-72.60670577,0.00011735,2]
[395093123,1764421846457,-190.01312623,0.00011735,2]
[395093124,1764421846466,-799.889246,0.00011735,2]
[395093125,1764421846476,-262.619832,0.00011735,2]
[395093126,1764421846485,-799.889246,0.00011735,2]
[395093127,1764421846494,-262.619832,0.00011735,2]
[395093128,1764421846503,-243.28612239,0.00011735,2]
[395093129,1764421846515,-556.60312361,0.00011735,2]
[395093130,1764421846525,-262.619832,0.00011735,2]
[395093131,1764421846534,-683.35649086,0.00011735,2]
[395093132,1764421846977,-116.53275514,0.00011735,2]
[395093133,1764421846986,-262.619832,0.00011735,2]
[395093134,1764421846995,-799.889246,0.00011735,2]
[395093135,1764421847005,-799.889246,0.00011735,2]
[395093136,1764421847015,-262.619832,0.00011735,2]
[395093137,1764421847023,-262.619832,0.00011735,2]
[395093138,1764421847033,-262.619832,0.00011735,2]
[395093139,1764421847042,-799.889246,0.00011735,2]
[395093140,1764421847051,-262.619832,0.00011735,2]
[395093141,1764421847060,-435.55034668,0.00011735,2]
[395093146,1764421862613,150.82,1e-05,2]
[395093147,1764421862938,150.82,1.1e-05,2]
[395093148,1764421863258,150.82,1.1e-05,2]
[395093150,1764421863844,150.82,1.2e-05,2]
[395093151,1764421864351,150.82,1.3e-05,2]
[395093152,1764421864683,150.82,1.4e-05,2]
[395093153,1764421865064,150.82,1.4e-05,2]
[395093156,1764421865398,150.82,1.5e-05,2]
[395093157,1764421865735,150.82,1.6e-05,2]
[395093158,1764421866086,150.82,1.6e-05,2]
[395093159,1764421866452,150.82,1.7e-05,2]
[395093160,1764421866792,150.82,1.8e-05,2]
[395093162,1764421867112,150.82,1.9e-05,2]
[395093163,1764421867899,150.82,1.9e-05,2]
[395093164,1764421869344,150.78,1e-05,2]
[395093171,1764421881019,-257.0042168,8.907e-05,2]
[395093182,1764421895947,-257.0042168,0.00010303,2]
[395093225,1764421946566,312.89805364,8.907e-05,2]
[395093228,1764421954155,261.78207333,9.111e-05,2]
[395093229,1764421954895,2392.41762137,8.907e-05,2]
[395093230,1764421955569,2392.41762137,9.464e-05,2]
[395093231,1764421956230,2392.41762137,0.00010021,2]
[395093232,1764421956899,2248.07700892,0.00010579,2]
[395093233,1764421956921,144.34061245,0.00010579,2]
[395093243,1764421985798,261.98382869,9.111e-05,2]
[395093273,1764422044077,498.54180965,0.00010781,2]
[395093294,1764422066710,498.54180965,0.00010781,2]
[395093306,1764422089449,498.54180965,0.00010781,2]
[395093324,1764422111953,498.54180965,0.00010781,2]
[395093331,1764422134969,498.54180965,0.00010781,2]
[395093339,1764422151387,498.54180965,0.00010781,2]
[395093344,1764422175093,228.04316217,0.00010728,2]
[395093346,1764422177464,1603.65882626,8.907e-05,2]
[395093347,1764422178958,1603.65882626,9.417e-05,2]
[395093348,1764422179125,1603.65882626,9.926e-05,2]
[395093349,1764422179802,1603.65882626,0.00010436,2]
[395093350,1764422196809,104.0968462,0.00010728,2]
[395093351,1764422196832,123.94631597,0.00010728,2]
[395093352,1764422220487,228.04316217,0.00010728,2]
[395093356,1764422242314,228.04316217,0.00010728,2]
[395093357,1764422264735,228.04316217,0.00010728,2]
[395093359,1764422287110,228.04316217,0.00010728,2]
[395093364,1764422309198,228.04316217,0.00010728,2]
[395093369,1764422332115,228.04316217,0.00010728,2]
[395093374,1764422354375,228.04316217,0.00010728,2]
[395093375,1764422363300,228.04316217,0.00010728,2]
[395093378,1764422389148,228.04316217,0.00010728,2]
[395093384,1764422412170,467.04316217,0.00010728,2]
[395093402,1764422434461,467.04316217,0.00010728,2]
[395093404,1764422457458,467.04316217,0.00010728,2]
[395093405,1764422474514,1375.51367686,8.907e-05,2]
[395093406,1764422475166,1375.51367686,9.671e-05,2]
[395093407,1764422475837,1375.51367686,0.00010436,2]
[395093410,1764422479149,467.04316217,0.00010728,2]
[395093417,1764422500910,467.04316217,0.00010728,2]
[395093420,1764422523195,467.04316217,0.00010728,2]
[395093422,1764422545283,467.04316217,0.00010728,2]
[395093429,1764422570103,427.83205873,0.00010728,2]
[395093430,1764422570127,39.21110344,0.00010728,2]
[395093431,1764422585506,467.04316217,0.00010728,2]
[395093432,1764422593831,239.0,0.00010728,2]
[395093471,1764422609436,239.0,0.00010728,2]
[395093474,1764422617293,239.0,0.00010728,2]
[395093476,1764422632492,239.0,0.00010728,2]
[395093477,1764422642174,239.0,0.00010728,2]
[395093478,1764422657346,239.0,0.00010728,2]
[395093479,1764422665498,239.0,0.00010728,2]
[395093485,1764422681299,239.0,0.00010728,2]
[395093488,1764422689287,239.0,0.00010728,2]
[395093491,1764422698584,245.50165019,9.111e-05,2]
[395093492,1764422704939,239.0,0.00010728,2]
[395093493,1764422713414,239.0,0.00010728,2]
[395093495,1764422728825,239.0,0.00010728,2]
[395093498,1764422737041,239.0,0.00010728,2]
[395093503,1764422752188,239.0,0.00010728,2]
[395093512,1764422759971,239.0,0.00010728,2]
[395093523,1764422773939,786.6814401,8.907e-05,2]
[395093524,1764422774592,786.6814401,9.651e-05,2]
[395093525,1764422775227,786.6814401,0.00010395,2]
[395093526,1764422775285,239.0,0.00010728,2]
[395093528,1764422783082,239.0,0.00010728,2]
[395093533,1764422798215,239.0,0.00010728,2]
[395093534,1764422806749,239.0,0.00010728,2]
[395093537,1764422822425,239.0,0.00010728,2]
[395093539,1764422828093,-239.0,0.00010836,2]
[395093540,1764422828114,-228.04316217,0.00010863,2]
[395093541,1764422828137,-449.50759745,0.00010899,2]
[395093542,1764422830343,239.0,0.00010728,2]
[395093543,1764422834074,-50.49240255,0.00010899,2]
[395093544,1764422834093,-153.54687409,0.00010899,2]
[395093563,1764422845955,1818.42380481,0.0001079,2]
[395093568,1764422853950,50.78595909,0.0001079,2]
[395093569,1764422853976,449.21404091,0.0001079,2]
[395093571,1764422876807,1200.0,0.00010789,2]
[395093576,1764422891810,654.3392745,0.00010591,2]
[395093581,1764422894028,1021.3827113,0.00010591,2]
[395093582,1764422899986,1500.0,0.00010789,2]
[395093591,1764422914352,1000.0,0.0001,2]
[395093596,1764422921969,4175.07397329,0.00010789,2]
[395093597,1764422921991,10000.01,0.00010789,2]
[395093598,1764422922013,10000.01,0.00010789,2]
[395093599,1764422922035,3998.9310616,0.00010789,2]
[395093601,1764422938329,185.95555613,0.00010798,2]
[395093602,1764422944332,5815.12338227,0.00010789,2]
[395093603,1764422944357,10000.01,0.00010789,2]
[395093604,1764422944380,10000.01,0.00010789,2]
[395093605,1764422944582,8827.54056611,0.00010789,2]
[395093607,1764422966607,300.0,0.00010788,2]
[395093608,1764422968547,500.0,0.000215,120]
[395093612,1764422988916,300.0,0.00010788,2]
[395093618,1764423011401,572.46943389,0.00010788,2]
[395093619,1764423011424,1527.53056611,0.00010788,2]
[395093620,1764423015607,8472.47943389,0.00010799,2]
[395093621,1764423015638,10000.01,0.00010799,2]
[395093622,1764423015669,10000.01,0.00010799,2]
[395093623,1764423015700,10000.01,0.00010799,2]
[395093624,1764423015733,10000.01,0.00010799,2]
[395093625,1764423015767,10000.01,0.00010799,2]
[395093626,1764423015802,10000.01,0.00010799,2]
[395093627,1764423015836,10000.01,0.00010799,2]
[395093628,1764423015872,10000.01,0.00010799,2]
[395093629,1764423015906,10000.01,0.00010799,2]
[395093635,1764423022788,-610.49296189,0.00010591,2]
[395093636,1764423022817,-952.94135769,0.00010591,2]
[395093638,1764423031687,170.59846109,0.00010798,2]
[395093639,1764423031718,384.59289724,0.00010798,2]
[395093650,1764423032360,-791527.43056611,0.00010799,2]
[395093651,1764423032369,-300.0,0.00010897,2]
[395093652,1764423032379,-300.0,0.00010897,2]
[395093653,1764423032388,-1200.0,0.00010897,2]
[395093654,1764423032397,-300.0,0.00010897,2]
[395093655,1764423032410,-1200.0,0.00010898,2]
[395093656,1764423032419,-500.0,0.00010899,2]
[395093657,1764423032428,-153.89871358,0.00010899,2]
[395093658,1764423032437,-28258.8754793,0.000109,2]
[395093659,1764423032447,-500.0,0.00010959,2]
[395093660,1764423032455,-500.0,0.00010959,2]
[395093661,1764423032464,-500.0,0.00010959,2]
[395093662,1764423032475,-500.0,0.00010959,2]
[395093663,1764423032484,-203.23701598,0.00010959,2]
[395093664,1764423032493,-500.0,0.00010959,2]
[395093665,1764423032502,-1586.9538984,0.00011,2]
[395093666,1764423032511,-786.6814401,0.0001114,2]
[395093667,1764423032521,-500.0,0.00011173,2]
[395093668,1764423032530,-3664.5192987,0.00011381,2]
[395093669,1764423032538,-500.0,0.00011447,2]
[395093670,1764423032547,-4828.50812449,0.00011448,2]
[395093671,1764423032556,-657.78396626,0.00011448,2]
[395093672,1764423032565,-1483.23415561,0.00011449,2]
[395093673,1764423032574,-250.0,0.00011449,2]
[395093674,1764423032584,-307.8364998,0.00011449,2]
[395093675,1764423032593,-252.3363329,0.00011449,2]
[395093676,1764423032602,-151.0,0.00011449,2]
[395093677,1764423032611,-447.95112622,0.00011449,2]
[395093678,1764423032621,-187.78006525,0.00011449,2]
[395093679,1764423032631,-163.446,0.00011491,2]
[395093680,1764423032640,-165.0,0.000115,2]
[395093681,1764423032649,-165.40972096,0.000115,2]
[395093682,1764423032658,-3865.37265089,0.00011544,2]
[395093683,1764423032667,-1032.444,0.00011552,2]
[395093684,1764423032676,-639.542,0.00011552,2]
[395093685,1764423032685,-2153.0,0.00011552,2]
[395093686,1764423032694,-414.0,0.00011552,2]
[395093687,1764423032703,-414.0,0.00011552,2]
[395093688,1764423032712,-151.0,0.000116,2]
[395093689,1764423032897,-151.0,0.000116,2]
[395093690,1764423032909,-151.0,0.00011644,2]
[395093691,1764423032919,-151.0,0.00011644,2]
[395093692,1764423032929,-151.0,0.00011644,2]
[395093693,1764423032937,-9291.5206549,0.00011661,2]
[395093694,1764423032946,-2050.4420258,0.00011661,2]
[395093695,1764423032955,-500.0,0.00011721,2]
[395093696,1764423032967,-34045.1964338,0.00011735,2]
[395093697,1764423032976,-151.0,0.00011735,2]
[395093698,1764423032985,-151.0,0.00011735,2]
[395093699,1764423032994,-151.0,0.00011735,2]
[395093700,1764423033004,-151.0,0.00011735,2]
[395093701,1764423033013,-165.626539,0.00011735,2]
[395093702,1764423033022,-165.626539,0.00011735,2]
[395093703,1764423033030,-165.626539,0.00011735,2]
[395093704,1764423033039,-165.626539,0.00011735,2]
[395093705,1764423033048,-151.0,0.00011735,2]
[395093706,1764423033058,-226.597198,0.00011735,2]
[395093707,1764423033067,-226.597198,0.00011735,2]
[395093708,1764423033076,-226.597198,0.00011735,2]
[395093709,1764423033086,-226.597198,0.00011735,2]
[395093710,1764423033095,-151.0,0.00011735,2]
[395093711,1764423033104,-151.0,0.00011735,2]
[395093712,1764423033113,-151.0,0.00011735,2]
[395093713,1764423033123,-178.935649,0.00011735,2]
[395093714,1764423033132,-178.935649,0.00011735,2]
[395093715,1764423033142,-178.935649,0.00011735,2]
[395093716,1764423033151,-178.935649,0.00011735,2]
[395093717,1764423033160,-151.0,0.00011735,2]
[395093718,1764423033170,-151.0,0.00011735,2]
[395093719,1764423033179,-151.0,0.00011735,2]
[395093720,1764423033188,-151.0,0.00011735,2]
[395093721,1764423033197,-196.641262,0.00011735,2]
[395093722,1764423033207,-196.641262,0.00011735,2]
[395093723,1764423033216,-196.641262,0.00011735,2]
[395093724,1764423033225,-196.641262,0.00011735,2]
[395093725,1764423033234,-151.0,0.00011735,2]
[395093726,1764423033243,-151.0,0.00011735,2]
[395093727,1764423033252,-151.0,0.00011735,2]
[395093728,1764423033261,-1171.714969,0.00011735,2]
[395093729,1764423033271,-151.0,0.00011735,2]
[395093730,1764423033280,-151.0,0.00011735,2]
[395093731,1764423033290,-222.293053,0.00011735,2]
[395093732,1764423033299,-498.150493,0.00011735,2]
[395093733,1764423033309,-498.150493,0.00011735,2]
[395093734,1764423033319,-498.150493,0.00011735,2]
[395093735,1764423033329,-498.150493,0.00011735,2]
[395093736,1764423033339,-151.0,0.00011735,2]
[395093737,1764423033348,-151.0,0.00011735,2]
[395093738,1764423033359,-394.24268973,0.00011735,2]
[395093739,1764423033368,-151.0,0.00011735,2]
[395093740,1764423033379,-151.0,0.00011735,2]
[395093741,1764423033387,-151.0,0.00011735,2]
[395093742,1764423033397,-151.0,0.00011735,2]
[395093743,1764423033409,-151.0,0.00011735,2]
[395093744,1764423033417,-151.0,0.00011735,2]
[395093745,1764423033426,-151.0,0.00011735,2]
[395093746,1764423033435,-287.369094,0.00011735,2]
[395093747,1764423033445,-151.0,0.00011735,2]
[395093748,1764423033454,-151.0,0.00011735,2]
[395093749,1764423033463,-287.369094,0.00011735,2]
[395093750,1764423033472,-151.0,0.00011735,2]
[395093751,1764423033481,-295.667276,0.00011735,2]
[395093752,1764423033490,-287.369094,0.00011735,2]
[395093753,1764423033499,-151.0,0.00011735,2]
[395093754,1764423033508,-295.667276,0.00011735,2]
[395093755,1764423033517,-287.369094,0.00011735,2]
[395093756,1764423033527,-151.0,0.00011735,2]
[395093757,1764423033536,-295.667276,0.00011735,2]
[395093758,1764423033545,-295.667276,0.00011735,2]
[395093759,1764423033554,-151.0,0.00011735,2]
[395093760,1764423033563,-171.762158,0.00011735,2]
[395093761,1764423033572,-573.794773,0.00011735,2]
[395093762,1764423033581,-155.845591,0.00011735,2]
[395093763,1764423033591,-573.794773,0.00011735,2]
[395093764,1764423033600,-298.482083,0.00011735,2]
[395093765,1764423033609,-155.845591,0.00011735,2]
[395093766,1764423033618,-573.794773,0.00011735,2]
[395093767,1764423033627,-298.482083,0.00011735,2]
[395093768,1764423033636,-155.845591,0.00011735,2]
[395093769,1764423033645,-573.794773,0.00011735,2]
[395093770,1764423033654,-298.482083,0.00011735,2]
[395093771,1764423033663,-155.845591,0.00011735,2]
[395093772,1764423033672,-298.482083,0.00011735,2]
[395093773,1764423033681,-151.0,0.00011735,2]
[395093774,1764423033691,-151.0,0.00011735,2]
[395093775,1764423033700,-151.0,0.00011735,2]
[395093776,1764423033710,-234.737762,0.00011735,2]
[395093777,1764423033719,-234.737762,0.00011735,2]
[395093778,1764423033728,-234.737762,0.00011735,2]
[395093779,1764423033738,-234.737762,0.00011735,2]
[395093780,1764423033748,-151.0,0.00011735,2]
[395093781,1764423033757,-303.464756,0.00011735,2]
[395093782,1764423033766,-151.0,0.00011735,2]
[395093783,1764423033775,-151.0,0.00011735,2]
[395093784,1764423033784,-303.464756,0.00011735,2]
[395093785,1764423033793,-152.593309,0.00011735,2]